[Event "Late-Titled-Tuesday-Blitz-May-07-2024"]
[Site "Chess.com"]
[Date "2024.05.07"]
[Round "8"]
[White "Hikaru"]
[Black "Oleksandr_Bortnyk"]
[Result "1-0"]
[WhiteElo "3228"]
[BlackElo "3074"]
[TimeControl "180+1"]
[EndTime "15:29:38 PDT"]
[Termination "Hikaru won by checkmate"]

1. d4 {[%clk 0:03:00.9]} 1... Nf6 {[%clk 0:02:59.6]} 2. Bg5 {[%clk 0:03:00.6]}
2... b6 {[%clk 0:02:57.7]} 3. c4 {[%clk 0:02:53.7]} 3... Bb7 {[%clk 0:02:57.4]}
4. Nc3 {[%clk 0:02:53.4]} 4... g6 {[%clk 0:02:53.5]} 5. f3 {[%clk 0:02:52.3]}
5... Bg7 {[%clk 0:02:53.3]} 6. e4 {[%clk 0:02:51.9]} 6... d6 {[%clk 0:02:53.8]}
7. Qd2 {[%clk 0:02:52.1]} 7... h6 {[%clk 0:02:49]} 8. Be3 {[%clk 0:02:52.2]}
8... c5 {[%clk 0:02:48.9]} 9. d5 {[%clk 0:02:51.3]} 9... Na6 {[%clk 0:02:48.3]}
10. Nh3 {[%clk 0:02:51.3]} 10... Nc7 {[%clk 0:02:46.3]} 11. Nf2 {[%clk
0:02:51.6]} 11... e6 {[%clk 0:02:32.6]} 12. Be2 {[%clk 0:02:32.8]} 12... exd5
{[%clk 0:02:31.4]} 13. cxd5 {[%clk 0:02:32.9]} 13... h5 {[%clk 0:02:20.9]} 14.
O-O {[%clk 0:02:32.5]} 14... O-O {[%clk 0:02:19.6]} 15. a4 {[%clk 0:02:32.3]}
15... Re8 {[%clk 0:02:15.9]} 16. Rfe1 {[%clk 0:02:26.2]} 16... a6 {[%clk
0:02:09.8]} 17. Rab1 {[%clk 0:02:19.2]} 17... Nd7 {[%clk 0:01:46.8]} 18. b4
{[%clk 0:02:14.8]} 18... Qf6 {[%clk 0:01:28.7]} 19. Rec1 {[%clk 0:02:12]} 19...
Bc8 {[%clk 0:01:06.3]} 20. a5 {[%clk 0:01:43.1]} 20... cxb4 {[%clk 0:01:04.4]}
21. Rxb4 {[%clk 0:01:44]} 21... bxa5 {[%clk 0:01:03.6]} 22. Rbb1 {[%clk
0:01:25.8]} 22... Bh8 {[%clk 0:00:53]} 23. Na4 {[%clk 0:01:18]} 23... Nb5 {[%clk
0:00:51.7]} 24. Qxa5 {[%clk 0:01:17.4]} 24... Nd4 {[%clk 0:00:48.8]} 25. Bd1
{[%clk 0:01:14.1]} 25... Nf5 {[%clk 0:00:31.2]} 26. Bd2 {[%clk 0:01:08.7]} 26...
Nh4 {[%clk 0:00:23.6]} 27. Qc3 {[%clk 0:01:01.5]} 27... Ne5 {[%clk 0:00:20.6]}
28. Qe3 {[%clk 0:01:01.7]} 28... Bd7 {[%clk 0:00:17.3]} 29. Nb6 {[%clk
0:01:01.8]} 29... Rab8 {[%clk 0:00:17.5]} 30. Nxd7 {[%clk 0:00:41.5]} 30... Nxd7
{[%clk 0:00:18.4]} 31. Bc3 {[%clk 0:00:26.4]} 31... Qe7 {[%clk 0:00:10.1]} 32.
Rxb8 {[%clk 0:00:22.7]} 32... Rxb8 {[%clk 0:00:10]} 33. Bxh8 {[%clk 0:00:22.7]}
33... Kxh8 {[%clk 0:00:10.9]} 34. Qc3+ {[%clk 0:00:20.9]} 34... Kh7 {[%clk
0:00:08]} 35. g3 {[%clk 0:00:21.2]} 35... Nc5 {[%clk 0:00:03.8]} 36. gxh4 {[%clk
0:00:18.4]} 36... Qxh4 {[%clk 0:00:04.7]} 37. Qe3 {[%clk 0:00:18.5]} 37... Rb2
{[%clk 0:00:04]} 38. Rc2 {[%clk 0:00:17.1]} 38... Rb1 {[%clk 0:00:04]} 39. Kg2
{[%clk 0:00:17.8]} 39... a5 {[%clk 0:00:03.9]} 40. e5 {[%clk 0:00:11.5]} 40...
Rb3 {[%clk 0:00:03.4]} 41. Rc3 {[%clk 0:00:09.7]} 41... Rxc3 {[%clk 0:00:04]}
42. Qxc3 {[%clk 0:00:10.5]} 42... Qg5+ {[%clk 0:00:04.8]} 43. Kf1 {[%clk
0:00:11]} 43... Qxe5 {[%clk 0:00:04.8]} 44. Qxe5 {[%clk 0:00:11.1]} 44... dxe5
{[%clk 0:00:05.7]} 45. Ne4 {[%clk 0:00:11.2]} 45... Nd7 {[%clk 0:00:06.3]} 46.
Ba4 {[%clk 0:00:10.7]} 46... Nb6 {[%clk 0:00:06.9]} 47. d6 {[%clk 0:00:11.2]}
47... f5 {[%clk 0:00:07.2]} 48. Nc5 {[%clk 0:00:11.2]} 48... Kg7 {[%clk
0:00:03.9]} 49. d7 {[%clk 0:00:11.6]} 49... Nxd7 {[%clk 0:00:04.1]} 50. Nxd7
{[%clk 0:00:11.5]} 50... e4 {[%clk 0:00:04.7]} 51. f4 {[%clk 0:00:10.9]} 51...
h4 {[%clk 0:00:05.1]} 52. Kf2 {[%clk 0:00:11.1]} 52... Kh6 {[%clk 0:00:05.6]}
53. Ne5 {[%clk 0:00:11.2]} 53... g5 {[%clk 0:00:06.5]} 54. Nf7+ {[%clk
0:00:11.6]} 54... Kh5 {[%clk 0:00:07]} 55. Nxg5 {[%clk 0:00:12.5]} 55... Kg4
{[%clk 0:00:07.7]} 56. Ne6 {[%clk 0:00:12.9]} 56... Kh3 {[%clk 0:00:07.8]} 57.
Ng7 {[%clk 0:00:11.2]} 57... Kg4 {[%clk 0:00:06.1]} 58. Ke3 {[%clk 0:00:11.4]}
58... h3 {[%clk 0:00:06.3]} 59. Bd1+ {[%clk 0:00:11.3]} 59... Kh4 {[%clk
0:00:05.5]} 60. Nxf5# {[%clk 0:00:12.2]} 1-0

[Event "Late-Titled-Tuesday-Blitz-May-07-2024"]
[Site "Chess.com"]
[Date "2024.05.07"]
[Round "8"]
[White "GMMikhailKazakov"]
[Black "ozates"]
[Result "0-1"]
[WhiteElo "2520"]
[BlackElo "2649"]
[TimeControl "180+1"]
[EndTime "15:29:41 PDT"]
[Termination "ozates won by checkmate"]

1. d4 {[%clk 0:03:00.9]} 1... Nf6 {[%clk 0:03:00.1]} 2. c4 {[%clk 0:02:56.1]}
2... e6 {[%clk 0:03:00.1]} 3. Nc3 {[%clk 0:02:54]} 3... d5 {[%clk 0:03:00.4]} 4.
e3 {[%clk 0:02:50.8]} 4... Be7 {[%clk 0:02:58.2]} 5. Nf3 {[%clk 0:02:50.7]} 5...
O-O {[%clk 0:02:58.8]} 6. Bd3 {[%clk 0:02:49.5]} 6... dxc4 {[%clk 0:02:59]} 7.
Bxc4 {[%clk 0:02:50.4]} 7... a6 {[%clk 0:02:59.5]} 8. O-O {[%clk 0:02:49.8]}
8... b5 {[%clk 0:02:59.7]} 9. Bd3 {[%clk 0:02:48]} 9... c5 {[%clk 0:02:59.3]}
10. Qe2 {[%clk 0:02:45.9]} 10... Bb7 {[%clk 0:02:58.7]} 11. Rd1 {[%clk
0:02:45.3]} 11... c4 {[%clk 0:02:39.4]} 12. Bc2 {[%clk 0:02:43.1]} 12... b4
{[%clk 0:02:39.6]} 13. Na4 {[%clk 0:02:40]} 13... Qc7 {[%clk 0:02:38.5]} 14. e4
{[%clk 0:02:23.4]} 14... h6 {[%clk 0:02:35.9]} 15. Ne5 {[%clk 0:02:04.8]} 15...
Nbd7 {[%clk 0:02:29.9]} 16. Nxc4 {[%clk 0:01:58.7]} 16... Rac8 {[%clk
0:02:28.8]} 17. b3 {[%clk 0:01:56.9]} 17... e5 {[%clk 0:02:29.2]} 18. d5 {[%clk
0:01:49]} 18... Nc5 {[%clk 0:02:26.1]} 19. Nxc5 {[%clk 0:01:47.5]} 19... Bxc5
{[%clk 0:02:26]} 20. Bb2 {[%clk 0:01:45.4]} 20... Nd7 {[%clk 0:02:23.7]} 21. Bd3
{[%clk 0:01:33.3]} 21... Rfe8 {[%clk 0:02:23.2]} 22. Rac1 {[%clk 0:01:31]} 22...
Qd8 {[%clk 0:02:23]} 23. g3 {[%clk 0:01:25.7]} 23... a5 {[%clk 0:02:22.6]} 24.
h4 {[%clk 0:01:23.8]} 24... Ba6 {[%clk 0:02:21.3]} 25. Ne3 {[%clk 0:01:14.4]}
25... Bxd3 {[%clk 0:02:18.2]} 26. Qxd3 {[%clk 0:01:13.1]} 26... Qf6 {[%clk
0:02:16.2]} 27. Qe2 {[%clk 0:01:05.8]} 27... Bd4 {[%clk 0:01:51.9]} 28. Rxc8
{[%clk 0:01:00.4]} 28... Rxc8 {[%clk 0:01:51.3]} 29. Nc4 {[%clk 0:00:57.5]}
29... a4 {[%clk 0:01:48.5]} 30. Bxd4 {[%clk 0:00:52.2]} 30... exd4 {[%clk
0:01:48.8]} 31. e5 {[%clk 0:00:42.4]} 31... Qa6 {[%clk 0:01:40.5]} 32. Rxd4
{[%clk 0:00:38.5]} 32... axb3 {[%clk 0:01:39.7]} 33. axb3 {[%clk 0:00:39.4]}
33... Nc5 {[%clk 0:01:39.3]} 34. Qf3 {[%clk 0:00:19.5]} 34... Rd8 {[%clk
0:01:00]} 35. d6 {[%clk 0:00:17.7]} 35... Ne6 {[%clk 0:00:53.5]} 36. Rd1 {[%clk
0:00:17.3]} 36... Qb5 {[%clk 0:00:49.3]} 37. Kg2 {[%clk 0:00:16.8]} 37... Qd7
{[%clk 0:00:38.1]} 38. Qd5 {[%clk 0:00:16.4]} 38... Qa7 {[%clk 0:00:35.4]} 39.
Qf3 {[%clk 0:00:15.8]} 39... Qd7 {[%clk 0:00:34]} 40. Ne3 {[%clk 0:00:15.2]}
40... Rc8 {[%clk 0:00:31.6]} 41. Nd5 {[%clk 0:00:14.8]} 41... Rc2 {[%clk
0:00:26.3]} 42. Nxb4 {[%clk 0:00:13.6]} 42... Rb2 {[%clk 0:00:26.5]} 43. Nd5
{[%clk 0:00:13.1]} 43... Kh8 {[%clk 0:00:22.7]} 44. Ne7 {[%clk 0:00:12.9]} 44...
Nd8 {[%clk 0:00:14.1]} 45. Rc1 {[%clk 0:00:11]} 45... g6 {[%clk 0:00:06.2]} 46.
Rc8 {[%clk 0:00:09.2]} 46... Rd2 {[%clk 0:00:02.1]} 47. Qf6+ {[%clk 0:00:06.9]}
47... Kh7 {[%clk 0:00:00.7]} 48. Nf5 {[%clk 0:00:04]} 48... gxf5 {[%clk
0:00:00.5]} 49. Rxd8 {[%clk 0:00:03.8]} 49... Qc6+ {[%clk 0:00:01.1]} 50. Kh3
{[%clk 0:00:01.3]} 50... Qh1# {[%clk 0:00:00.5]} 0-1

[Event "Late-Titled-Tuesday-Blitz-May-07-2024"]
[Site "Chess.com"]
[Date "2024.05.07"]
[Round "8"]
[White "dealshark"]
[Black "maracayo"]
[Result "0-1"]
[WhiteElo "2523"]
[BlackElo "2389"]
[TimeControl "180+1"]
[EndTime "15:29:41 PDT"]
[Termination "maracayo won by resignation"]

1. e4 {[%clk 0:03:00.9]} 1... d6 {[%clk 0:02:59.7]} 2. d4 {[%clk 0:03:00.4]}
2... Nf6 {[%clk 0:02:59.8]} 3. Nc3 {[%clk 0:03:00.7]} 3... c6 {[%clk 0:03:00.1]}
4. Nf3 {[%clk 0:03:01]} 4... Qa5 {[%clk 0:03:00.1]} 5. Bd3 {[%clk 0:02:58.9]}
5... e5 {[%clk 0:02:58.7]} 6. dxe5 {[%clk 0:02:56.7]} 6... dxe5 {[%clk
0:02:57.7]} 7. O-O {[%clk 0:02:56.6]} 7... Be7 {[%clk 0:02:57.3]} 8. h3 {[%clk
0:02:54.7]} 8... O-O {[%clk 0:02:56.5]} 9. Bd2 {[%clk 0:02:51.5]} 9... Qc7
{[%clk 0:02:54.8]} 10. Qe2 {[%clk 0:02:51]} 10... b5 {[%clk 0:02:53.3]} 11. a3
{[%clk 0:02:51.1]} 11... a6 {[%clk 0:02:52.6]} 12. Rad1 {[%clk 0:02:50.8]} 12...
Re8 {[%clk 0:02:51.3]} 13. Rfe1 {[%clk 0:02:46.3]} 13... h6 {[%clk 0:02:50.2]}
14. Nh2 {[%clk 0:02:30.3]} 14... Nbd7 {[%clk 0:02:47.6]} 15. Ng4 {[%clk
0:02:25.7]} 15... Nxg4 {[%clk 0:02:41.6]} 16. hxg4 {[%clk 0:02:25.9]} 16... Nc5
{[%clk 0:02:36.2]} 17. Qf3 {[%clk 0:02:24.8]} 17... Ne6 {[%clk 0:02:32.1]} 18.
Ne2 {[%clk 0:02:21]} 18... Bg5 {[%clk 0:02:23.4]} 19. Ng3 {[%clk 0:02:16.8]}
19... Bxd2 {[%clk 0:02:11.9]} 20. Rxd2 {[%clk 0:02:15.3]} 20... g6 {[%clk
0:02:12.3]} 21. c3 {[%clk 0:02:10.2]} 21... Qe7 {[%clk 0:02:04]} 22. Red1 {[%clk
0:02:05.7]} 22... Qh4 {[%clk 0:01:59.9]} 23. Nf1 {[%clk 0:01:56.3]} 23... Ng5
{[%clk 0:01:54.4]} 24. Qg3 {[%clk 0:01:54.2]} 24... Qxg3 {[%clk 0:01:50.4]} 25.
Nxg3 {[%clk 0:01:53.4]} 25... Bxg4 {[%clk 0:01:49.8]} 26. f3 {[%clk 0:01:50.6]}
26... Bxf3 {[%clk 0:01:24.6]} 27. gxf3 {[%clk 0:01:50.9]} 27... Nxf3+ {[%clk
0:01:24.8]} 28. Kf2 {[%clk 0:01:51.6]} 28... Nxd2 {[%clk 0:01:24.9]} 29. Rxd2
{[%clk 0:01:52.5]} 29... Rad8 {[%clk 0:01:24.5]} 30. Ke3 {[%clk 0:01:50.8]}
30... Kg7 {[%clk 0:01:22]} 31. Rg2 {[%clk 0:01:46.1]} 31... Kf6 {[%clk 0:01:22]}
32. Bc2 {[%clk 0:01:41.8]} 32... h5 {[%clk 0:01:20.8]} 33. Rf2+ {[%clk 0:01:39]}
33... Ke7 {[%clk 0:01:19.7]} 34. Bb3 {[%clk 0:01:38.4]} 34... Rf8 {[%clk
0:01:10.3]} 35. c4 {[%clk 0:01:35.6]} 35... h4 {[%clk 0:00:57.4]} 36. Ne2 {[%clk
0:01:33]} 36... f5 {[%clk 0:00:56.6]} 37. exf5 {[%clk 0:01:30.7]} 37... Rxf5
{[%clk 0:00:51.8]} 38. Rg2 {[%clk 0:01:21.7]} 38... Kf6 {[%clk 0:00:46.7]} 39.
Nc3 {[%clk 0:01:21.3]} 39... Rd4 {[%clk 0:00:38.8]} 40. Bc2 {[%clk 0:01:08.8]}
40... h3 {[%clk 0:00:27.2]} 41. Rh2 {[%clk 0:01:03]} 41... Rh5 {[%clk
0:00:25.7]} 42. Ne4+ {[%clk 0:00:59.8]} 42... Kg7 {[%clk 0:00:23.6]} 43. cxb5
{[%clk 0:00:58.1]} 43... axb5 {[%clk 0:00:22.8]} 44. Bb3 {[%clk 0:00:48.8]}
44... Rh4 {[%clk 0:00:20.3]} 45. Ng3 {[%clk 0:00:46.3]} 45... Kh6 {[%clk
0:00:20.2]} 46. Be6 {[%clk 0:00:45]} 46... b4 {[%clk 0:00:16.2]} 47. a4 {[%clk
0:00:44.7]} 47... b3 {[%clk 0:00:15.2]} 48. Bxb3 {[%clk 0:00:41.2]} 48... Rb4
{[%clk 0:00:14.7]} 49. Bd1 {[%clk 0:00:38.4]} 49... Rbd4 {[%clk 0:00:10.6]} 50.
Bf3 {[%clk 0:00:32.6]} 50... Rxa4 {[%clk 0:00:09.8]} 51. Be4 {[%clk 0:00:29.7]}
51... Rb4 {[%clk 0:00:08.3]} 52. Bxc6 {[%clk 0:00:21.4]} 52... Rb3+ {[%clk
0:00:08.1]} 53. Kf2 {[%clk 0:00:21.1]} 53... Rf4+ {[%clk 0:00:07.9]} 54. Kg1
{[%clk 0:00:22]} 54... Rxg3+ {[%clk 0:00:07.7]} 55. Bg2 {[%clk 0:00:17.7]} 55...
Rxg2+ {[%clk 0:00:07.8]} 56. Rxg2 {[%clk 0:00:18.6]} 56... hxg2 {[%clk
0:00:08.4]} 57. Kxg2 {[%clk 0:00:19.3]} 57... Rb4 {[%clk 0:00:08.9]} 58. Kg3
{[%clk 0:00:19.7]} 58... Kg5 {[%clk 0:00:09.6]} 59. Kg2 {[%clk 0:00:19.3]} 59...
Rb3 {[%clk 0:00:09.9]} 60. Kf1 {[%clk 0:00:20.2]} 60... Kf4 {[%clk 0:00:10.4]}
61. Ke1 {[%clk 0:00:21.1]} 61... Rxb2 {[%clk 0:00:10.6]} 62. Kd1 {[%clk
0:00:22]} 62... Rh2 {[%clk 0:00:10.5]} 63. Kc1 {[%clk 0:00:22.9]} 63... g5
{[%clk 0:00:11]} 64. Kb1 {[%clk 0:00:23.8]} 64... g4 {[%clk 0:00:11.7]} 0-1

[Event "Late-Titled-Tuesday-Blitz-May-07-2024"]
[Site "Chess.com"]
[Date "2024.05.07"]
[Round "8"]
[White "SRob2003"]
[Black "Yaacovn"]
[Result "0-1"]
[WhiteElo "2687"]
[BlackElo "2846"]
[TimeControl "180+1"]
[EndTime "15:29:49 PDT"]
[Termination "Yaacovn won on time"]

1. d4 {[%clk 0:03:00.9]} 1... Nf6 {[%clk 0:02:51.4]} 2. c4 {[%clk 0:03:01.3]}
2... e5 {[%clk 0:02:51.1]} 3. dxe5 {[%clk 0:03:00.7]} 3... Ne4 {[%clk
0:02:51.3]} 4. Nf3 {[%clk 0:02:51.6]} 4... Nc6 {[%clk 0:02:50.5]} 5. a3 {[%clk
0:02:50.7]} 5... d6 {[%clk 0:02:50.6]} 6. exd6 {[%clk 0:02:44.3]} 6... Bxd6
{[%clk 0:02:51.5]} 7. e3 {[%clk 0:02:44.6]} 7... Bf5 {[%clk 0:02:51.2]} 8. Bd3
{[%clk 0:02:28.7]} 8... Qe7 {[%clk 0:02:40.6]} 9. Qc2 {[%clk 0:02:28.5]} 9...
Bg6 {[%clk 0:02:40.4]} 10. Nbd2 {[%clk 0:02:27.8]} 10... Ng5 {[%clk 0:02:37.9]}
11. b4 {[%clk 0:01:59.7]} 11... O-O-O {[%clk 0:02:32.6]} 12. Bxg6 {[%clk
0:01:53.2]} 12... hxg6 {[%clk 0:02:32.3]} 13. c5 {[%clk 0:01:41.3]} 13... Be5
{[%clk 0:02:29.4]} 14. Bb2 {[%clk 0:01:41.2]} 14... Qf6 {[%clk 0:02:20.8]} 15.
O-O-O {[%clk 0:01:05.8]} 15... Bxb2+ {[%clk 0:01:53.8]} 16. Qxb2 {[%clk
0:01:05.7]} 16... Qe7 {[%clk 0:01:51.3]} 17. Qxg7 {[%clk 0:01:00.8]} 17... Ne6
{[%clk 0:01:37.9]} 18. Qc3 {[%clk 0:00:58.6]} 18... a5 {[%clk 0:01:30.7]} 19.
Nc4 {[%clk 0:00:53.1]} 19... axb4 {[%clk 0:01:30.7]} 20. axb4 {[%clk 0:00:54]}
20... Kb8 {[%clk 0:01:20.6]} 21. Nfe5 {[%clk 0:00:49.6]} 21... Nxe5 {[%clk
0:01:17.3]} 22. Qxe5 {[%clk 0:00:41.8]} 22... Rh5 {[%clk 0:01:14]} 23. Rxd8+
{[%clk 0:00:32.6]} 23... Qxd8 {[%clk 0:01:14.3]} 24. Qc3 {[%clk 0:00:33.5]}
24... Qd5 {[%clk 0:01:13.9]} 25. f3 {[%clk 0:00:26.9]} 25... Qc6 {[%clk
0:00:58.5]} 26. h3 {[%clk 0:00:23.1]} 26... Nxc5 {[%clk 0:00:58.8]} 27. Nd2
{[%clk 0:00:05.2]} 27... Nd3+ {[%clk 0:00:50.9]} 28. Kc2 {[%clk 0:00:05.5]}
28... Nxb4+ {[%clk 0:00:51.1]} 29. Kb3 {[%clk 0:00:05.9]} 29... Qe6+ {[%clk
0:00:38.9]} 30. Qc4 {[%clk 0:00:04.8]} 30... Qxe3+ {[%clk 0:00:37.8]} 31. Qc3
{[%clk 0:00:04.9]} 31... Qe6+ {[%clk 0:00:34.4]} 32. Qc4 {[%clk 0:00:05.1]}
32... Rd5 {[%clk 0:00:33.1]} 33. Ne4 {[%clk 0:00:04.7]} 33... Rd3+ {[%clk
0:00:28.2]} 34. Kxb4 {[%clk 0:00:04.8]} 34... Qb6+ {[%clk 0:00:28.5]} 35. Ka4
{[%clk 0:00:05]} 35... Rd4 {[%clk 0:00:28.5]} 36. Rc1 {[%clk 0:00:03.5]} 36...
c6 {[%clk 0:00:17.6]} 37. Qxd4 {[%clk 0:00:01.4]} 37... Qxd4+ {[%clk 0:00:17.8]}
38. Kb3 {[%clk 0:00:01.8]} 38... Qd3+ {[%clk 0:00:16.8]} 39. Rc3 {[%clk
0:00:02.1]} 39... Qb1+ {[%clk 0:00:16.2]} 40. Ka3 {[%clk 0:00:01.9]} 40... Qa1+
{[%clk 0:00:15.3]} 41. Kb3 {[%clk 0:00:01.9]} 41... Qf1 {[%clk 0:00:14.9]} 42.
Rc2 {[%clk 0:00:02.2]} 42... Qb5+ {[%clk 0:00:14.7]} 43. Ka2 {[%clk 0:00:02]}
43... f5 {[%clk 0:00:15.2]} 44. Nc5 {[%clk 0:00:02.1]} 44... Qa5+ {[%clk
0:00:15.2]} 45. Kb2 {[%clk 0:00:02.1]} 45... Qb4+ {[%clk 0:00:15.6]} 46. Nb3
{[%clk 0:00:02.6]} 46... Kc7 {[%clk 0:00:14.4]} 47. g4 {[%clk 0:00:02.5]} 47...
Qf4 {[%clk 0:00:13.8]} 48. gxf5 {[%clk 0:00:02.4]} 48... Qxf5 {[%clk 0:00:14.3]}
49. Rc3 {[%clk 0:00:02.1]} 49... Qxh3 {[%clk 0:00:13.9]} 50. Nd2 {[%clk
0:00:02.1]} 50... Qh2 {[%clk 0:00:14]} 51. Kc2 {[%clk 0:00:03]} 51... Qe2 {[%clk
0:00:13.4]} 52. Rd3 {[%clk 0:00:02.9]} 52... b5 {[%clk 0:00:13.6]} 53. Ra3
{[%clk 0:00:02.6]} 53... c5 {[%clk 0:00:13.4]} 54. Ra6 {[%clk 0:00:02.4]} 54...
Qe8 {[%clk 0:00:11.6]} 55. Ra7+ {[%clk 0:00:02.1]} 55... Kb6 {[%clk 0:00:11.8]}
56. Ra3 {[%clk 0:00:02.2]} 56... Qe6 {[%clk 0:00:11]} 57. Rd3 {[%clk 0:00:01.9]}
57... Qf5 {[%clk 0:00:10.5]} 58. Kc3 {[%clk 0:00:01.8]} 58... b4+ {[%clk
0:00:11.1]} 59. Kc4 {[%clk 0:00:01.9]} 59... Qe6+ {[%clk 0:00:10.6]} 60. Rd5
{[%clk 0:00:01.2]} 60... Kc6 {[%clk 0:00:10.9]} 0-1

[Event "Late-Titled-Tuesday-Blitz-May-07-2024"]
[Site "Chess.com"]
[Date "2024.05.07"]
[Round "8"]
[White "Abund"]
[Black "KuzubovYuriy"]
[Result "0-1"]
[WhiteElo "2776"]
[BlackElo "2950"]
[TimeControl "180+1"]
[EndTime "15:29:51 PDT"]
[Termination "KuzubovYuriy won by checkmate"]

1. e4 {[%clk 0:03:00.9]} 1... c5 {[%clk 0:02:59.1]} 2. Nf3 {[%clk 0:02:59.8]}
2... Nc6 {[%clk 0:02:59.8]} 3. Bb5 {[%clk 0:02:59.9]} 3... d6 {[%clk 0:02:57.2]}
4. O-O {[%clk 0:02:59.6]} 4... Bd7 {[%clk 0:02:57.3]} 5. Re1 {[%clk 0:03:00]}
5... Nf6 {[%clk 0:02:57.6]} 6. c3 {[%clk 0:03:00.2]} 6... a6 {[%clk 0:02:58.3]}
7. Bf1 {[%clk 0:03:00.4]} 7... Bg4 {[%clk 0:02:57.3]} 8. h3 {[%clk 0:03:01.1]}
8... Bxf3 {[%clk 0:02:56.3]} 9. Qxf3 {[%clk 0:03:01.8]} 9... e6 {[%clk
0:02:55.1]} 10. d3 {[%clk 0:02:56.3]} 10... Be7 {[%clk 0:02:51.2]} 11. Qg3
{[%clk 0:02:47.7]} 11... Rg8 {[%clk 0:02:50.9]} 12. f4 {[%clk 0:02:34.2]} 12...
g5 {[%clk 0:02:49.7]} 13. fxg5 {[%clk 0:01:48.4]} 13... h6 {[%clk 0:02:48.7]}
14. g6 {[%clk 0:01:34.3]} 14... Rxg6 {[%clk 0:02:45.7]} 15. Qf2 {[%clk
0:01:32.6]} 15... Nh5 {[%clk 0:02:38]} 16. Qf3 {[%clk 0:01:22.7]} 16... Bh4
{[%clk 0:02:02]} 17. Rd1 {[%clk 0:01:21.8]} 17... Ng3 {[%clk 0:02:00.8]} 18. Bf4
{[%clk 0:00:49.5]} 18... Ne5 {[%clk 0:01:46.1]} 19. Qe3 {[%clk 0:00:40.9]} 19...
Nh5 {[%clk 0:01:29]} 20. d4 {[%clk 0:00:30]} 20... Nxf4 {[%clk 0:01:09]} 21.
Qxf4 {[%clk 0:00:30.1]} 21... Rf6 {[%clk 0:00:54.8]} 22. Qc1 {[%clk 0:00:30.2]}
22... cxd4 {[%clk 0:00:36.6]} 23. cxd4 {[%clk 0:00:30.4]} 23... Rc8 {[%clk
0:00:34.6]} 24. Nc3 {[%clk 0:00:30.3]} 24... Qb6 {[%clk 0:00:32.2]} 25. Kh1
{[%clk 0:00:27.2]} 25... Ng6 {[%clk 0:00:23.3]} 26. Rb1 {[%clk 0:00:07.9]} 26...
Ke7 {[%clk 0:00:20.6]} 27. Qxh6 {[%clk 0:00:07.3]} 27... Rh8 {[%clk 0:00:19.8]}
28. Qe3 {[%clk 0:00:07.4]} 28... Bf2 {[%clk 0:00:19.5]} 29. Qd3 {[%clk
0:00:07.2]} 29... Nf4 {[%clk 0:00:19.1]} 30. Qd2 {[%clk 0:00:06.9]} 30... Nh5
{[%clk 0:00:18.4]} 31. e5 {[%clk 0:00:04.8]} 31... Rf4 {[%clk 0:00:16.4]} 32.
Ne2 {[%clk 0:00:04.4]} 32... Ng3+ {[%clk 0:00:15.3]} 33. Nxg3 {[%clk 0:00:04.5]}
33... Bxg3 {[%clk 0:00:15.6]} 34. Qe3 {[%clk 0:00:04.7]} 34... Rg8 {[%clk
0:00:14.8]} 35. Rbc1 {[%clk 0:00:03.7]} 35... dxe5 {[%clk 0:00:12.7]} 36. Qe2
{[%clk 0:00:03]} 36... exd4 {[%clk 0:00:11.9]} 37. Rc4 {[%clk 0:00:03.5]} 37...
Bf2 {[%clk 0:00:10.6]} 38. Qe5 {[%clk 0:00:03.1]} 38... Be3 {[%clk 0:00:09.3]}
39. Be2 {[%clk 0:00:02]} 39... Rd8 {[%clk 0:00:08.4]} 40. Bf3 {[%clk 0:00:01.9]}
40... Qd6 {[%clk 0:00:07.7]} 41. Qg5+ {[%clk 0:00:01.8]} 41... Kd7 {[%clk
0:00:06.6]} 42. Qh5 {[%clk 0:00:01.3]} 42... Rg8 {[%clk 0:00:04.2]} 43. Rc2
{[%clk 0:00:01.5]} 43... Ke7 {[%clk 0:00:04]} 44. Bxb7 {[%clk 0:00:01.9]} 44...
Rf5 {[%clk 0:00:03]} 45. Qe2 {[%clk 0:00:01.6]} 45... Qg3 {[%clk 0:00:02.7]} 46.
Bf3 {[%clk 0:00:01.6]} 46... Bf4 {[%clk 0:00:02.8]} 47. Kg1 {[%clk 0:00:01.6]}
47... Qh2+ {[%clk 0:00:02.9]} 48. Kf2 {[%clk 0:00:01.6]} 48... Be3+ {[%clk
0:00:03.1]} 49. Ke1 {[%clk 0:00:01.6]} 49... Qg3+ {[%clk 0:00:01.6]} 50. Kf1
{[%clk 0:00:01.8]} 50... Qxh3 {[%clk 0:00:01.2]} 51. Rxd4 {[%clk 0:00:01.2]}
51... Qh1# {[%clk 0:00:01.3]} 0-1